[Event "FIDE WYCC Girls U14 2023"]
[Site "Montesilvano"]
[Date "2023.11.21"]
[Round "8.33"]
[White "Huseynova, Lala"]
[Black "Michalska, Lena"]
[Result "1-0"]
[ECO "B06"]
[WhiteElo "1867"]
[BlackElo "1640"]
[Annotator "NA RC"]
[PlyCount "83"]
[EventDate "2023.11.13"]
[EventType "swiss"]
[EventCountry "ITA"]
[SourceTitle "playchess.com"]
[Source "ChessBase"]
[SourceQuality "1"]
[TimeControl "40/5400+30:1800+30"]

1. e4 {[%emt 0:00:03]} g6 {[%emt 0:00:03]} 2. d4 {[%emt 0:00:28]} Bg7 {[%emt 0:00:06]} 3. Nc3 {[%emt 0:00:19]} a6 {[%emt 0:00:09]} 4. a4 {[%emt 0:03:36]} b6 {[%emt 0:00:55]} 5. g4 {[%emt 0:02:40]} Bb7 {[%emt 0:00:56]} 6. Bg2 {[%emt 0:00:27]} d6 {[%emt 0:03:13]} 7. h4 {[%emt 0:01:16]} h6 {[%emt 0:00:09]} 8. Be3 {[%emt 0:01:05]} Nd7 {[%emt 0:04:10]} 9. Nge2 {[%emt 0:02:20]} c5 {[%emt 0:01:56]} 10. Ng3 {[%emt 0:09:27]} Ngf6 {[%emt 0:16:52]} 11. g5 {[%emt 0:15:56]} hxg5 {[%emt 0:02:20]} 12. hxg5 {[%emt 0:00:14]} Rxh1+ {[%emt 0:00:23]} 13. Bxh1 {[%emt 0:00:23]} Ng4 {[%emt 0:00:39]} 14. Bc1 {[%emt 0:12:53]} cxd4 {[%emt 0:01:34]} 15. Nce2 {[%emt 0:00:53]} Qc7 {[%emt 0:03:05]} 16. Bg2 {[%emt 0:17:41]} Qc5 {[%emt 0:03:49]} 17. Nf4 {[%emt 0:06:06]} Nge5 {[%emt 0:17:22]} 18. Nge2 {[%emt 0:05:31]} Ng4 {[%emt 0:03:14]} 19. Nd3 {[%emt 0:04:30]} Qc7 {[%emt 0:00:49]} 20. Bf4 {[%emt 0:01:40]} Nc5 {[%emt 0:06:44]} 21. Ng3 {[%emt 0:01:56]} Ne5 {[%emt 0:01:12]} 22. Qe2 {[%emt 0:04:57]} Qd7 {[%emt 0:06:08]} 23. Bxe5 {[%emt 0:02:55]} Nxd3+ {[%emt 0:00:50]} 24. Qxd3 {[%emt 0:00:51]} Bxe5 {[%emt 0:00:02]} 25. Bf3 {[%emt 0:01:54]} Qh3 {[%emt 0:02:25]} 26. Ne2 {[%emt 0:00:42]} Qh4 {[%emt 0:01:38]} 27. Nxd4 {[%emt 0:00:27]} Qxg5 {[%emt 0:00:15]} 28. Ke2 {[%emt 0:00:15]} Qf6 {[%emt 0:00:41]} 29. c3 {[%emt 0:00:38]} Qf4 {[%emt 0:03:40]} 30. a5 {[%emt 0:01:09]} b5 {[%emt 0:00:29]} 31. Nxb5 {[%emt 0:00:33]} Rc8 {[%emt 0:00:42]} 32. Na3 {[%emt 0:00:40]} f5 {[%emt 0:02:13]} 33. exf5 {[%emt 0:00:41]} Bxf3+ {[%emt 0:00:01]} 34. Qxf3 {[%emt 0:00:01]} Qxf3+ {[%emt 0:00:02]} 35. Kxf3 gxf5 {[%emt 0:00:03]} 36. Nc2 {[%emt 0:00:34]} Kd7 {[%emt 0:00:59]} 37. Nb4 {[%emt 0:00:40]} Ra8 {[%emt 0:00:36]} 38. Ke3 {[%emt 0:00:36]} e6 {[%emt 0:02:19]} 39. Rh1 {[%emt 0:00:17]} Bf6 {[%emt 0:02:59]} 40. Rh7+ {[%emt 0:00:00]} Be7 {[%emt 0:00:00]} 41. Kd4 {[%emt 0:06:31]} Rb8 {[%emt 0:02:58]} 42. Rxe7+ {[%emt 0:00:32]} 1-0

[Event "FIDE WYCC Girls U14 2023"]
[Site "Montesilvano"]
[Date "2023.11.21"]
[Round "8.34"]
[White "Mrad, Anahid"]
[Black "Trunz, Tamila"]
[Result "0-1"]
[ECO "B40"]
[WhiteElo "1378"]
[BlackElo "1732"]
[Annotator "NA RC"]
[PlyCount "88"]
[EventDate "2023.11.13"]
[EventType "swiss"]
[EventCountry "ITA"]
[SourceTitle "playchess.com"]
[Source "ChessBase"]
[SourceQuality "1"]
[TimeControl "40/5400+30:1800+30"]

1. e4 {[%emt 0:00:03]} c5 {[%emt 0:00:04]} 2. Nf3 {[%emt 0:00:05]} e6 {[%emt 0:00:04]} 3. d4 {[%emt 0:00:08]} cxd4 {[%emt 0:00:06]} 4. Nxd4 {[%emt 0:00:06]} Nf6 {[%emt 0:00:06]} 5. Nc3 {[%emt 0:00:10]} Nc6 {[%emt 0:00:06]} 6. Ndb5 {[%emt 0:00:07]} Bc5 {[%emt 0:00:06]} 7. Bf4 {[%emt 0:00:12]} O-O {[%emt 0:00:24]} 8. Bc7 {[%emt 0:00:16]} Qe7 {[%emt 0:00:07]} 9. Bd6 {[%emt 0:00:07]} Bxd6 {[%emt 0:00:12]} 10. Qxd6 {[%emt 0:00:11]} Qd8 {[%emt 0:00:10]} 11. O-O-O {[%emt 0:00:34]} a6 {[%emt 0:01:02]} 12. Nd4 {[%emt 0:00:37]} Nxd4 {[%emt 0:04:05]} 13. Qxd4 {[%emt 0:01:59]} b5 {[%emt 0:01:08]} 14. e5 {[%emt 0:01:42]} Ne8 {[%emt 0:03:23]} 15. Bd3 {[%emt 0:01:33]} Rb8 {[%emt 0:02:07]} 16. a3 {[%emt 0:02:03]} f5 {[%emt 0:11:31]} 17. h4 {[%emt 0:02:10]} Qe7 {[%emt 0:01:45]} 18. Na2 {[%emt 0:05:56]} d6 {[%emt 0:04:20]} 19. g4 {[%emt 0:03:36]} Bb7 {[%emt 0:01:46]} 20. Rh3 {[%emt 0:02:09]} dxe5 {[%emt 0:05:20]} 21. Qxe5 {[%emt 0:02:03]} fxg4 {[%emt 0:01:35]} 22. Re3 {[%emt 0:05:49]} Nf6 {[%emt 0:00:35]} 23. Bf5 {[%emt 0:04:11]} Rfe8 {[%emt 0:05:49]} 24. Bxe6+ {[%emt 0:03:23]} Kh8 {[%emt 0:00:43]} 25. h5 {[%emt 0:01:25]} h6 {[%emt 0:08:10]} 26. Qf5 {[%emt 0:01:33]} Be4 {[%emt 0:01:52]} 27. Rxe4 {[%emt 0:07:13]} Nxe4 {[%emt 0:00:09]} 28. Bf7 {[%emt 0:01:43]} Rf8 {[%emt 0:01:39]} 29. Rd7 {[%emt 0:01:43]} Qg5+ {[%emt 0:00:40]} 30. Qxg5 {[%emt 0:02:00]} Nxg5 {[%emt 0:00:08]} 31. Bg6 {[%emt 0:04:21]} Rxf2 {[%emt 0:01:32]} 32. Nc3 {[%emt 0:04:40]} g3 {[%emt 0:00:46]} 33. Rd1 {[%emt 0:02:10]} g2 {[%emt 0:00:20]} 34. Bd3 {[%emt 0:06:50]} Nh3 {[%emt 0:02:18]} 35. Ne2 {[%emt 0:02:14]} Rf1 {[%emt 0:00:52]} 36. Bf5 {[%emt 0:04:52]} Rxf5 {[%emt 0:00:30]} 37. b3 {[%emt 0:03:28]} Rf1 {[%emt 0:00:25]} 38. c4 {[%emt 0:01:21]} Rd8 {[%emt 0:00:28]} 39. Kc2 {[%emt 0:01:52]} Rfxd1 {[%emt 0:00:17]} 40. Kc3 {[%emt 0:00:00]} R1d2 {[%emt 0:00:00]} 41. Kb4 {[%emt 0:03:20]} Rxe2 {[%emt 0:01:11]} 42. Ka5 {[%emt 0:00:53]} bxc4 {[%emt 0:00:31]} 43. bxc4 {[%emt 0:00:17]} Rb2 {[%emt 0:00:13]} 44. a4 {[%emt 0:02:37]} g1=Q {[%emt 0:00:18]} 0-1

[Event "FIDE WYCC Girls U14 2023"]
[Site "Montesilvano"]
[Date "2023.11.21"]
[Round "8.35"]
[White "Mongoljin, Davaadorj"]
[Black "Huang, Jolie"]
[Result "1-0"]
[ECO "B36"]
[WhiteElo "1077"]
[BlackElo "1680"]
[Annotator "NA RC"]
[PlyCount "101"]
[EventDate "2023.11.13"]
[EventType "swiss"]
[EventCountry "ITA"]
[SourceTitle "playchess.com"]
[Source "ChessBase"]
[SourceQuality "1"]
[TimeControl "40/5400+30:1800+30"]

1. e4 {[%emt 0:00:09]} c5 {[%emt 0:00:11]} 2. Nf3 {[%emt 0:00:06]} g6 {[%emt 0:00:17]} 3. d4 {[%emt 0:00:10]} cxd4 {[%emt 0:00:12]} 4. Nxd4 {[%emt 0:00:04]} Nc6 {[%emt 0:00:13]} 5. c4 {[%emt 0:00:12]} Nf6 {[%emt 0:00:23]} 6. Nc3 {[%emt 0:00:28]} d6 {[%emt 0:00:15]} 7. Be3 {[%emt 0:05:15]} Ng4 {[%emt 0:03:31]} 8. Nxc6 {[%emt 0:08:08]} bxc6 {[%emt 0:02:21]} 9. Qd4 {[%emt 0:01:39]} e5 {[%emt 0:10:32]} 10. Qd2 {[%emt 0:01:06]} Nxe3 {[%emt 0:00:18]} 11. Qxe3 {[%emt 0:00:21]} Be7 {[%emt 0:04:04]} 12. Rd1 {[%emt 0:07:02]} Qa5 {[%emt 0:05:49]} 13. Be2 {[%emt 0:15:45]} Be6 {[%emt 0:04:44]} 14. O-O {[%emt 0:03:24]} O-O {[%emt 0:01:40]} 15. Kh1 {[%emt 0:08:41]} Qb4 {[%emt 0:17:48]} 16. b3 {[%emt 0:04:18]} f5 {[%emt 0:01:34]} 17. exf5 {[%emt 0:08:46]} Bxf5 {[%emt 0:00:28]} 18. Bf3 {[%emt 0:02:26]} Rac8 {[%emt 0:04:25]} 19. Na4 {[%emt 0:08:45]} Qa5 {[%emt 0:06:07]} 20. Be4 {[%emt 0:04:31]} Be6 {[%emt 0:07:35]} 21. Qg3 {[%emt 0:03:00]} Bf5 22. f3 {[%emt 0:05:30]} Kh8 {[%emt 0:08:11]} 23. Qe1 {[%emt 0:04:55]} Qc7 {[%emt 0:01:30]} 24. Qc3 {[%emt 0:01:24]} Rf6 {[%emt 0:03:11]} 25. Qd3 {[%emt 0:04:30]} Rcf8 {[%emt 0:00:51]} 26. Nc3 {[%emt 0:01:08]} Be6 {[%emt 0:02:38]} 27. Qd2 {[%emt 0:01:21]} Rd8 {[%emt 0:03:42]} 28. Qe3 {[%emt 0:00:35]} Kg7 {[%emt 0:05:26]} 29. Rf2 {[%emt 0:00:27]} Rdf8 {[%emt 0:03:35]} 30. Rfd2 {[%emt 0:00:29]} Bf5 {[%emt 0:01:23]} 31. Ne2 {[%emt 0:00:48]} h6 {[%emt 0:01:07]} 32. h3 {[%emt 0:00:35]} R6f7 {[%emt 0:00:26]} 33. f4 {[%emt 0:00:29]} exf4 {[%emt 0:00:36]} 34. Nxf4 {[%emt 0:00:30]} Kh7 {[%emt 0:01:44]} 35. Bxf5 {[%emt 0:00:08]} Rxf5 {[%emt 0:00:09]} 36. Ne6 {[%emt 0:00:30]} Bg5 {[%emt 0:00:55]} 37. Qxg5 {[%emt 0:00:48]} Rxg5 {[%emt 0:00:31]} 38. Nxc7 {[%emt 0:00:09]} Re5 {[%emt 0:00:23]} 39. Rxd6 {[%emt 0:00:11]} Re2 {[%emt 0:00:13]} 40. Rd7+ {[%emt 0:00:00]} Kh8 {[%emt 0:00:00]} 41. Rd8 {[%emt 0:01:26]} Rxd8 {[%emt 0:01:01]} 42. Rxd8+ {[%emt 0:00:07]} Kg7 {[%emt 0:00:03]} 43. Rd7+ {[%emt 0:01:05]} Kg8 {[%emt 0:00:11]} 44. a4 {[%emt 0:00:22]} Rb2 {[%emt 0:00:12]} 45. Rd3 {[%emt 0:00:09]} Kf7 {[%emt 0:00:11]} 46. Na6 {[%emt 0:00:08]} Ke7 {[%emt 0:00:47]} 47. Nb4 {[%emt 0:00:16]} c5 {[%emt 0:00:21]} 48. Nc6+ {[%emt 0:00:04]} Ke6 {[%emt 0:00:09]} 49. Nxa7 {[%emt 0:00:08]} Rf2 {[%emt 0:00:11]} 50. Nb5 {[%emt 0:00:13]} Rf8 {[%emt 0:00:18]} 51. a5 {[%emt 0:00:10]} 1-0

[Event "FIDE WYCC Girls U14 2023"]
[Site "Montesilvano"]
[Date "2023.11.22"]
[Round "9.1"]
[White "Tsetskhladze, Mariam"]
[Black "Mgeladze, Kesaria"]
[Result "1/2-1/2"]
[ECO "B12"]
[WhiteElo "1911"]
[BlackElo "2065"]
[Annotator "RC"]
[PlyCount "138"]
[EventDate "2023.11.13"]
[EventType "swiss"]
[EventCountry "ITA"]
[SourceTitle "playchess.com"]
[Source "ChessBase"]
[SourceQuality "1"]
[TimeControl "40/5400+30:1800+30"]

1. e4 {[%emt 0:00:14]} c6 {[%emt 0:00:05]} 2. d4 {[%emt 0:00:10]} d5 {[%emt 0:00:04]} 3. e5 {[%emt 0:00:11]} Bf5 {[%emt 0:00:06]} 4. Nd2 {[%emt 0:00:13]} e6 {[%emt 0:00:05]} 5. Nb3 {[%emt 0:00:08]} c5 {[%emt 0:01:06]} 6. dxc5 {[%emt 0:00:09]} Bxc5 {[%emt 0:00:08]} 7. Nxc5 {[%emt 0:00:06]} Qa5+ {[%emt 0:00:05]} 8. c3 {[%emt 0:00:05]} Qxc5 {[%emt 0:00:06]} 9. Be3 {[%emt 0:00:27]} Qc7 {[%emt 0:00:06]} 10. f4 {[%emt 0:00:23]} Nc6 {[%emt 0:00:20]} 11. Nf3 {[%emt 0:03:27]} Nge7 {[%emt 0:00:06]} 12. Be2 {[%emt 0:01:12]} O-O {[%emt 0:00:16]} 13. O-O {[%emt 0:08:19]} Be4 {[%emt 0:00:41]} 14. g4 {[%emt 0:11:14]} f6 {[%emt 0:12:21]} 15. exf6 {[%emt 0:10:46]} Rxf6 {[%emt 0:00:39]} 16. Ng5 {[%emt 0:00:37]} Bg6 {[%emt 0:01:19]} 17. Qe1 {[%emt 0:05:00]} Raf8 {[%emt 0:06:51]} 18. Qg3 {[%emt 0:05:55]} h6 {[%emt 0:03:47]} 19. Nf3 {[%emt 0:01:49]} Bh7 {[%emt 0:04:52]} 20. Ne5 {[%emt 0:16:47]} Nxe5 {[%emt 0:13:06]} 21. fxe5 {[%emt 0:00:07]} Rxf1+ {[%emt 0:00:04]} 22. Rxf1 {[%emt 0:00:03]} Rxf1+ {[%emt 0:00:07]} 23. Bxf1 {[%emt 0:00:19]} Nc6 {[%emt 0:00:19]} 24. Bc5 {[%emt 0:12:35]} Bb1 {[%emt 0:19:53]} 25. a3 {[%emt 0:03:11]} Be4 {[%emt 0:06:34]} 26. Bd4 {[%emt 0:07:32]} Nxd4 {[%emt 0:07:49]} 27. cxd4 {[%emt 0:00:07]} Qc1 {[%emt 0:02:28]} 28. Qc3 {[%emt 0:01:19]} Qd1 {[%emt 0:00:22]} 29. h3 {[%emt 0:01:00]} Kh7 {[%emt 0:03:11]} 30. Kf2 {[%emt 0:01:10]} a5 {[%emt 0:03:31]} 31. Be2 {[%emt 0:06:20]} Qh1 {[%emt 0:00:56]} 32. Qe3 {[%emt 0:02:34]} Qh2+ {[%emt 0:03:30]} 33. Ke1 {[%emt 0:00:27]} Bg2 {[%emt 0:01:24]} 34. Qd3+ {[%emt 0:00:53]} Kh8 {[%emt 0:00:25]} 35. Qc3 {[%emt 0:01:56]} Be4 {[%emt 0:03:03]} 36. Kd2 {[%emt 0:00:40]} Bg2 {[%emt 0:03:56]} 37. Ke1 {[%emt 0:00:35]} Qh1+ {[%emt 0:01:43]} 38. Kd2 {[%emt 0:00:29]} Be4 {[%emt 0:02:29]} 39. Qc8+ {[%emt 0:00:38]} Kh7 {[%emt 0:00:04]} 40. Qxe6 {[%emt 0:00:00]} Qb1 {[%emt 0:00:00]} 41. Qb6 {[%emt 0:07:19]} Qc2+ {[%emt 0:05:00]} 42. Ke1 {[%emt 0:02:30]} Qc1+ {[%emt 0:00:11]} 43. Kf2 {[%emt 0:00:12]} Qd2 {[%emt 0:00:35]} 44. Kf1 {[%emt 0:03:14]} Qe3 {[%emt 0:06:49]} 45. e6 {[%emt 0:03:44]} Qg3 {[%emt 0:00:44]} 46. Bb5 {[%emt 0:03:56]} Qxh3+ {[%emt 0:01:21]} 47. Ke1 {[%emt 0:03:52]} Qe3+ {[%emt 0:01:53]} 48. Kd1 {[%emt 0:03:45]} Qg1+ {[%emt 0:04:59]} 49. Kd2 {[%emt 0:00:27]} Qf2+ {[%emt 0:02:55]} 50. Be2 {[%emt 0:00:44]} Qf4+ {[%emt 0:03:02]} 51. Kd1 {[%emt 0:01:01]} Qf6 {[%emt 0:01:05]} 52. Ke1 {[%emt 0:01:57]} Qe7 {[%emt 0:02:41]} 53. Qxa5 {[%emt 0:01:14]} Qxe6 {[%emt 0:00:05]} 54. Qc3 {[%emt 0:00:18]} Qf6 {[%emt 0:00:33]} 55. Kd2 {[%emt 0:00:51]} Qh4 {[%emt 0:02:22]} 56. Qe3 {[%emt 0:00:31]} Qh2 {[%emt 0:00:40]} 57. Qc3 {[%emt 0:01:05]} Bg6 {[%emt 0:00:47]} 58. Qf3 {[%emt 0:00:57]} Be4 {[%emt 0:01:13]} 59. Qc3 {[%emt 0:00:11]} Bg2 {[%emt 0:01:14]} 60. Qd3+ {[%emt 0:01:22]} Be4 {[%emt 0:00:08]} 61. Qc3 {[%emt 0:00:08]} Bg6 {[%emt 0:01:48]} 62. Qf3 {[%emt 0:00:12]} Qd6 {[%emt 0:00:28]} 63. Bd3 {[%emt 0:00:58]} Bxd3 {[%emt 0:00:27]} 64. Qxd3+ {[%emt 0:00:03]} Kg8 {[%emt 0:00:25]} 65. Qf3 {[%emt 0:00:30]} Qc6 {[%emt 0:00:40]} 66. Qf5 {[%emt 0:00:47]} Qc4 {[%emt 0:00:26]} 67. Qe6+ {[%emt 0:01:04]} Kh8 {[%emt 0:00:12]} 68. Qe8+ {[%emt 0:00:09]} Kh7 {[%emt 0:00:03]} 69. Qe5 {[%emt 0:00:22]} Qb3 {[%emt 0:00:26]} 1/2-1/2

[Event "FIDE WYCC Girls U14 2023"]
[Site "Montesilvano"]
[Date "2023.11.22"]
[Round "9.2"]
[White "Kaliakhmet, Elnaz"]
[Black "Orazalina, Nursulu"]
[Result "1-0"]
[ECO "E73"]
[WhiteElo "1933"]
[BlackElo "1428"]
[Annotator "NA RC"]
[PlyCount "73"]
[EventDate "2023.11.13"]
[EventType "swiss"]
[EventCountry "ITA"]
[SourceTitle "playchess.com"]
[Source "ChessBase"]
[SourceQuality "1"]
[TimeControl "40/5400+30:1800+30"]

1. d4 {[%emt 0:00:04]} Nf6 {[%emt 0:00:05]} 2. c4 {[%emt 0:00:25]} g6 {[%emt 0:00:06]} 3. Nc3 {[%emt 0:00:19]} Bg7 {[%emt 0:00:07]} 4. e4 {[%emt 0:00:28]} d6 {[%emt 0:00:03]} 5. Be2 {[%emt 0:00:14]} O-O {[%emt 0:00:09]} 6. Bg5 {[%emt 0:00:18]} c5 {[%emt 0:00:27]} 7. d5 {[%emt 0:00:32]} h6 {[%emt 0:00:11]} 8. Be3 {[%emt 0:00:43]} e5 {[%emt 0:00:50]} 9. g4 {[%emt 0:04:27]} b5 {[%emt 0:10:41]} 10. cxb5 {[%emt 0:01:23]} a6 {[%emt 0:00:04]} 11. bxa6 {[%emt 0:29:57]} Bxa6 {[%emt 0:02:21]} 12. h3 {[%emt 0:00:07]} Bxe2 {[%emt 0:22:58]} 13. Ngxe2 {[%emt 0:00:09]} Nfd7 {[%emt 0:00:44]} 14. Qd2 {[%emt 0:05:06]} Kh7 {[%emt 0:01:18]} 15. h4 {[%emt 0:02:04]} Nb6 {[%emt 0:06:24]} 16. b3 {[%emt 0:01:34]} Na6 {[%emt 0:11:41]} 17. h5 {[%emt 0:01:03]} g5 {[%emt 0:00:27]} 18. Ng3 {[%emt 0:00:56]} Nc8 {[%emt 0:34:12]} 19. O-O {[%emt 0:01:58]} f6 {[%emt 0:02:23]} 20. a3 {[%emt 0:00:54]} Ne7 {[%emt 0:00:41]} 21. Rfb1 {[%emt 0:00:35]} Qd7 {[%emt 0:00:55]} 22. Qe2 {[%emt 0:00:37]} Rfc8 {[%emt 0:00:58]} 23. Bd2 {[%emt 0:00:53]} Rcb8 {[%emt 0:01:16]} 24. b4 {[%emt 0:00:37]} cxb4 {[%emt 0:00:20]} 25. axb4 {[%emt 0:00:03]} Nc7 {[%emt 0:00:28]} 26. Rxa8 {[%emt 0:03:50]} Nxa8 {[%emt 0:00:19]} 27. Be3 {[%emt 0:05:05]} Nc8 {[%emt 0:00:33]} 28. b5 {[%emt 0:03:14]} Nab6 {[%emt 0:00:46]} 29. Na2 {[%emt 0:01:27]} Bf8 {[%emt 0:02:28]} 30. Nb4 {[%emt 0:00:14]} Be7 {[%emt 0:00:12]} 31. Nc6 {[%emt 0:04:46]} Ra8 {[%emt 0:00:04]} 32. Nxe7 {[%emt 0:02:02]} Qxe7 {[%emt 0:00:07]} 33. Qc2 {[%emt 0:00:03]} Ra4 {[%emt 0:01:33]} 34. Bxb6 {[%emt 0:00:37]} Nxb6 {[%emt 0:00:08]} 35. Qc6 {[%emt 0:00:09]} Qd8 {[%emt 0:00:45]} 36. Qb7+ {[%emt 0:00:07]} Nd7 {[%emt 0:00:52]} 37. Rc1 {[%emt 0:00:11]} 1-0

[Event "FIDE WYCC Girls U14 2023"]
[Site "Montesilvano"]
[Date "2023.11.22"]
[Round "9.3"]
[White "Ciarletta, Iris"]
[Black "Goriachkina, Oksana"]
[Result "1/2-1/2"]
[ECO "B12"]
[WhiteElo "1882"]
[BlackElo "1915"]
[Annotator "NA RC"]
[PlyCount "71"]
[EventDate "2023.11.13"]
[EventType "swiss"]
[EventCountry "ITA"]
[SourceTitle "playchess.com"]
[Source "ChessBase"]
[SourceQuality "1"]
[TimeControl "40/5400+30:1800+30"]

1. e4 {[%emt 0:00:18]} c6 {[%emt 0:00:40]} 2. d4 {[%emt 0:00:34]} d5 {[%emt 0:00:04]} 3. e5 {[%emt 0:00:15]} Bf5 {[%emt 0:00:04]} 4. h4 {[%emt 0:00:08]} h5 {[%emt 0:00:05]} 5. Bd3 {[%emt 0:00:09]} Bxd3 {[%emt 0:00:36]} 6. Qxd3 {[%emt 0:00:13]} Qa5+ {[%emt 0:00:07]} 7. b4 {[%emt 0:00:27]} Qxb4+ {[%emt 0:00:45]} 8. Nd2 {[%emt 0:00:29]} e6 {[%emt 0:06:53]} 9. Rb1 {[%emt 0:00:39]} Qe7 {[%emt 0:00:04]} 10. c4 {[%emt 0:01:38]} Nh6 {[%emt 0:03:04]} 11. Ne2 {[%emt 0:02:23]} Nf5 {[%emt 0:02:07]} 12. Ng3 {[%emt 0:01:44]} Nxh4 {[%emt 0:09:06]} 13. Nde4 {[%emt 0:00:53]} dxe4 {[%emt 0:12:13]} 14. Nxe4 {[%emt 0:00:20]} Nxg2+ {[%emt 0:03:40]} 15. Kf1 {[%emt 0:01:00]} Qd7 {[%emt 0:01:55]} 16. Kxg2 {[%emt 0:01:02]} c5 {[%emt 0:05:11]} 17. d5 {[%emt 0:01:06]} Nc6 {[%emt 0:01:59]} 18. f4 {[%emt 0:01:34]} exd5 {[%emt 0:06:43]} 19. cxd5 {[%emt 0:02:00]} Nb4 {[%emt 0:00:38]} 20. Qf3 {[%emt 0:08:32]} b6 {[%emt 0:25:30]} 21. e6 {[%emt 0:08:51]} fxe6 {[%emt 0:03:30]} 22. dxe6 {[%emt 0:00:19]} Qxe6 {[%emt 0:00:54]} 23. Nd6+ {[%emt 0:06:09]} Qxd6 {[%emt 0:08:29]} 24. Qxa8+ Kf7 {[%emt 0:00:05]} 25. Qe4 {[%emt 0:04:27]} Be7 {[%emt 0:02:37]} 26. Re1 {[%emt 0:03:13]} h4 {[%emt 0:02:31]} 27. Rb3 {[%emt 0:03:05]} Rd8 {[%emt 0:00:50]} 28. Rf3 {[%emt 0:03:18]} Bf6 {[%emt 0:00:54]} 29. f5 {[%emt 0:02:59]} Qd5 {[%emt 0:01:32]} 30. Qg4 {[%emt 0:01:50]} Nd3 {[%emt 0:01:08]} 31. Re6 {[%emt 0:02:42]} Ne5 {[%emt 0:00:54]} 32. Qh5+ {[%emt 0:00:53]} Kf8 {[%emt 0:00:02]} 33. Qh8+ {[%emt 0:00:59]} Kf7 {[%emt 0:00:03]} 34. Qh5+ {[%emt 0:00:04]} Kf8 {[%emt 0:01:56]} 35. Qh8+ {[%emt 0:00:07]} Kf7 {[%emt 0:00:02]} 36. Qh5+ 1/2-1/2

[Event "FIDE WYCC Girls U14 2023"]
[Site "Montesilvano"]
[Date "2023.11.22"]
[Round "9.4"]
[White "Khulan, Bayarsaikhan"]
[Black "Nurgaliyeva, Zarina"]
[Result "0-1"]
[ECO "A13"]
[WhiteElo "1615"]
[BlackElo "2104"]
[Annotator "NA COMBH"]
[PlyCount "74"]
[EventDate "2023.11.13"]
[EventType "swiss"]
[EventCountry "ITA"]
[SourceTitle "playchess.com"]
[Source "ChessBase"]
[SourceQuality "1"]
[TimeControl "40/5400+30:1800+30"]

1. Nf3 {[%emt 0:00:03]} d5 {[%emt 0:00:06]} 2. c4 {[%emt 0:00:06]} e6 {[%emt 0:00:05]} 3. g3 {[%emt 0:00:09]} Nf6 {[%emt 0:00:17]} 4. Bg2 {[%emt 0:00:07]} dxc4 {[%emt 0:00:15]} 5. Qa4+ {[%emt 0:00:05]} c6 {[%emt 0:00:04]} 6. Qxc4 {[%emt 0:01:33]} b5 {[%emt 0:00:20]} 7. Qc2 {[%emt 0:01:20]} Bb7 {[%emt 0:00:32]} 8. Nc3 {[%emt 0:05:11]} a6 {[%emt 0:02:36]} 9. d4 {[%emt 0:06:17]} c5 {[%emt 0:06:25]} 10. dxc5 {[%emt 0:03:24]} Bxc5 {[%emt 0:01:00]} 11. O-O {[%emt 0:04:51]} Nbd7 {[%emt 0:00:44]} 12. Bg5 {[%emt 0:02:08]} Qb6 {[%emt 0:06:47]} 13. Bxf6 {[%emt 0:02:30]} Nxf6 {[%emt 0:00:39]} 14. e3 {[%emt 0:00:38]} O-O {[%emt 0:01:09]} 15. Ng5 {[%emt 0:02:38]} Bxg2 {[%emt 0:06:48]} 16. Kxg2 {[%emt 0:01:16]} Be7 {[%emt 0:02:45]} 17. Nf3 {[%emt 0:13:02]} Rac8 {[%emt 0:01:14]} 18. Qb3 {[%emt 0:02:01]} Qb7 {[%emt 0:02:16]} 19. Qd1 {[%emt 0:03:14]} Rfd8 {[%emt 0:00:16]} 20. Qe2 {[%emt 0:00:19]} b4 {[%emt 0:01:15]} 21. Na4 {[%emt 0:01:49]} Qb5 {[%emt 0:00:41]} 22. Nd4 {[%emt 0:10:19]} Qxa4 {[%emt 0:00:26]} 23. b3 {[%emt 0:01:43]} Qa5 {[%emt 0:00:22]} 24. Rac1 {[%emt 0:00:52]} Qb6 {[%emt 0:00:11]} 25. Qf3 {[%emt 0:02:30]} Nd5 {[%emt 0:00:09]} 26. Rc4 {[%emt 0:05:04]} Rxc4 {[%emt 0:00:45]} 27. bxc4 {[%emt 0:00:05]} Nf6 {[%emt 0:00:05]} 28. Nc6 {[%emt 0:06:05]} Re8 {[%emt 0:00:11]} 29. Rd1 {[%emt 0:01:51]} Bf8 {[%emt 0:00:17]} 30. Ne5 {[%emt 0:01:48]} Rc8 {[%emt 0:00:25]} 31. Qf4 {[%emt 0:08:23]} Bd6 {[%emt 0:02:05]} 32. e4 {[%emt 0:04:11]} Qc7 {[%emt 0:00:28]} 33. Rxd6 {[%emt 0:03:58]} Qxd6 {[%emt 0:00:10]} 34. g4 {[%emt 0:00:17]} Rc5 {[%emt 0:00:22]} 35. g5 {[%emt 0:00:59]} Qxe5 {[%emt 0:00:04]} 36. Qxe5 {[%emt 0:00:08]} Rxe5 {[%emt 0:00:03]} 37. gxf6 {[%emt 0:00:01]} Rxe4 {[%emt 0:00:01]} 0-1

[Event "FIDE WYCC Girls U14 2023"]
[Site "Montesilvano"]
[Date "2023.11.22"]
[Round "9.5"]
[White "Piddubna, Bozhena"]
[Black "Gaszka, Zuzanna"]
[Result "1-0"]
[ECO "A05"]
[WhiteElo "2081"]
[BlackElo "1758"]
[Annotator "NA RC"]
[PlyCount "55"]
[EventDate "2023.11.13"]
[EventType "swiss"]
[EventCountry "ITA"]
[SourceTitle "playchess.com"]
[Source "ChessBase"]
[SourceQuality "1"]
[TimeControl "40/5400+30:1800+30"]

1. Nf3 {[%emt 0:01:27]} Nf6 {[%emt 0:00:06]} 2. g3 {[%emt 0:00:04]} e6 {[%emt 0:00:24]} 3. Bg2 {[%emt 0:00:15]} c5 {[%emt 0:00:46]} 4. c4 {[%emt 0:00:36]} d5 {[%emt 0:01:13]} 5. d4 {[%emt 0:02:20]} cxd4 {[%emt 0:00:30]} 6. O-O {[%emt 0:00:35]} Nc6 {[%emt 0:02:18]} 7. cxd5 {[%emt 0:02:37]} Nxd5 {[%emt 0:05:18]} 8. Nxd4 {[%emt 0:00:38]} Be7 {[%emt 0:04:35]} 9. Nc3 {[%emt 0:07:13]} Nxc3 {[%emt 0:07:27]} 10. bxc3 {[%emt 0:00:53]} Bd7 {[%emt 0:02:02]} 11. Rb1 {[%emt 0:01:29]} e5 {[%emt 0:32:51]} 12. Nxc6 {[%emt 0:03:48]} Bxc6 {[%emt 0:00:24]} 13. Bxc6+ {[%emt 0:00:25]} bxc6 {[%emt 0:00:05]} 14. Qa4 {[%emt 0:00:06]} Qc7 {[%emt 0:09:44]} 15. Qa6 {[%emt 0:03:16]} Bc5 {[%emt 0:03:22]} 16. Qc4 {[%emt 0:15:57]} Bb6 {[%emt 0:01:55]} 17. Ba3 {[%emt 0:07:14]} c5 {[%emt 0:05:25]} 18. Qa4+ {[%emt 0:08:04]} Qd7 {[%emt 0:00:28]} 19. Qe4 {[%emt 0:00:06]} O-O {[%emt 0:00:52]} 20. Rfd1 {[%emt 0:05:02]} Qe6 {[%emt 0:01:03]} 21. Rd5 {[%emt 0:00:40]} Rfe8 {[%emt 0:01:43]} 22. Bxc5 {[%emt 0:07:37]} Bxc5 {[%emt 0:02:05]} 23. Rxc5 {[%emt 0:00:06]} Qxa2 {[%emt 0:00:45]} 24. Rbb5 {[%emt 0:00:12]} f6 {[%emt 0:01:20]} 25. Rb7 {[%emt 0:03:19]} Rab8 {[%emt 0:07:32]} 26. Rcc7 {[%emt 0:00:39]} Rxb7 {[%emt 0:00:40]} 27. Qxb7 {[%emt 0:00:11]} Qa1+ {[%emt 0:00:20]} 28. Kg2 {[%emt 0:00:06]} 1-0